fUST/lending_fUST_20250701
["ID","MTS","AMOUNT","RATE_DAILY","PERIOD"]
[368781007,1751363462146,-500.0,0.000213,7]
[368781008,1751363462156,-500.0,0.000213,7]
[368781009,1751363462166,-500.0,0.000213,7]
[368781010,1751363462177,-500.0,0.000213,7]
[368781011,1751363462187,-500.0,0.000213,7]
[368781012,1751363462196,-500.0,0.000213,7]
[368781013,1751363462206,-500.0,0.000213,7]
[368781014,1751363462217,-500.0,0.000213,7]
[368781015,1751363462227,-500.0,0.000213,7]
[368781016,1751363462237,-500.0,0.000213,7]
[368781017,1751363462247,-500.0,0.000213,7]
[368781018,1751363462257,-500.0,0.000213,7]
[368781019,1751363462267,-500.0,0.000213,7]
[368781020,1751363462277,-500.0,0.000213,7]
[368781021,1751363462287,-500.0,0.000213,7]
[368781022,1751363462296,-500.0,0.000213,7]
[368781023,1751363462306,-500.0,0.000213,7]
[368781024,1751363462316,-500.0,0.000213,7]
[368781025,1751363462325,-500.0,0.000213,7]
[368781026,1751363462335,-500.0,0.000213,7]
[368781027,1751363462346,-500.0,0.000213,7]
[368781028,1751363462356,-500.0,0.000213,7]
[368781029,1751363462367,-500.0,0.000213,7]
[368781030,1751363462377,-500.0,0.000213,7]
[368781031,1751363462387,-500.0,0.000213,7]
[368781032,1751363462398,-500.0,0.000213,7]
[368781033,1751363462408,-500.0,0.000213,7]
[368781034,1751363462419,-500.0,0.000213,7]
[368781035,1751363462429,-500.0,0.000213,7]
[368781036,1751363462440,-500.0,0.000213,7]
[368781037,1751363462459,-500.0,0.000213,7]
[368781038,1751363462486,-500.0,0.000213,7]
[368781039,1751363462506,-500.0,0.000213,7]
[368781040,1751363462531,-500.0,0.000213,7]
[368781041,1751363462552,-500.0,0.000213,7]
[368781042,1751363462573,-500.0,0.000213,7]
[368781043,1751363462595,-500.0,0.000213,7]
[368781044,1751363462612,-500.0,0.000213,7]
[368781045,1751363462630,-500.0,0.000213,7]
[368781046,1751363462651,-500.0,0.000213,7]
[368781047,1751363462673,-500.0,0.000213,7]
[368781048,1751363462687,-500.0,0.000213,7]
[368781049,1751363462710,-500.0,0.000213,7]
[368781050,1751363462725,-500.0,0.000213,7]
[368781051,1751363462743,-500.0,0.000213,7]
[368781052,1751363462757,-500.0,0.000213,7]
[368781053,1751363462775,-500.0,0.000213,7]
[368781054,1751363462792,-500.0,0.000213,7]
[368781055,1751363462810,-500.0,0.000213,7]
[368781056,1751363462826,-500.0,0.000213,7]
[368781057,1751363462842,-500.0,0.000213,7]
[368781058,1751363462858,-500.0,0.000213,7]
[368781059,1751363462873,-500.0,0.000213,7]
[368781060,1751363462889,-500.0,0.000213,7]
[368781061,1751363462904,-500.0,0.000213,7]
[368781062,1751363462921,-500.0,0.000213,7]
[368781063,1751363462936,-500.0,0.000213,7]
[368781064,1751363462954,-500.0,0.000213,7]
[368781065,1751363462966,-500.0,0.000213,7]
[368781066,1751363462976,-500.0,0.000213,7]
[368781067,1751363462987,-500.0,0.000213,7]
[368781068,1751363462998,-500.0,0.000213,7]
[368781069,1751363463008,-500.0,0.000213,7]
[368781070,1751363463019,-500.0,0.000213,7]
[368781071,1751363463031,-500.0,0.000213,7]
[368781072,1751363463040,-500.0,0.000213,7]
[368781073,1751363463050,-240.68,0.000213,7]
[368781074,1751363463061,-847.53272281,0.000213,7]
[368781075,1751363463070,-12571.40790328,0.000213,7]
[368781076,1751363463080,-213.87551669,0.000213,7]
[368781077,1751363463090,-524.61914904,0.000213,7]
[368781078,1751363463100,-160.0,0.000213,7]
[368781079,1751363463110,-608.33617136,0.00021314,5]
[368781080,1751363463120,-460.0,0.00021362,2]
[368781081,1751363463134,-486.34,0.00021362,2]
[368781082,1751363463144,-460.0,0.00021362,2]
[368781083,1751363463153,-574.57,0.00021362,2]
[368781084,1751363463297,-460.0,0.00021362,2]
[368781085,1751363463373,-460.0,0.00021362,2]
[368781086,1751363463386,-2968.01,0.00021363,2]
[368781087,1751363463396,-842.61,0.00021363,2]
[368781088,1751363463406,-598.6,0.00021369,2]
[368781089,1751363463415,-935.82,0.00021369,2]
[368781090,1751363463425,-460.0,0.00021369,2]
[368781091,1751363463435,-460.0,0.00021369,2]
[368781092,1751363463445,-1539.79,0.00021369,2]
[368781093,1751363463455,-2209.86,0.00021369,2]
[368781094,1751363463465,-460.0,0.00021369,2]
[368781095,1751363463474,-1177.83,0.00021369,2]
[368781096,1751363463484,-514.45,0.00021371,2]
[368781097,1751363463494,-154.5150171,0.00021395,2]
[368781098,1751363463504,-360.53503989,0.00021395,2]
[368781099,1751363463514,-150.0,0.00021462,2]
[368781100,1751363463524,-460.0,0.00021462,2]
[368781101,1751363463535,-566.58537397,0.00021462,2]
[368781102,1751363463545,-245.361217,0.000215,2]
[368781103,1751363463555,-168.0,0.0002152,2]
[368781104,1751363463565,-1323.74,0.00021544,2]
[368781105,1751363463575,-1590.5,0.00021545,2]
[368781106,1751363463584,-460.0,0.00021545,2]
[368781107,1751363463594,-1192.21,0.00021545,2]
[368781108,1751363463604,-1552.26,0.00021545,2]
[368781109,1751363463614,-460.0,0.00021545,2]
[368781110,1751363463623,-1767.48,0.00021545,2]
[368781111,1751363463633,-1866.06,0.00021545,2]
[368781112,1751363463643,-210.78,0.00021545,2]
[368781113,1751363463653,-460.0,0.00021545,2]
[368781114,1751363463663,-1119.17,0.00021545,2]
[368781115,1751363463672,-585.13,0.00021545,2]
[368781116,1751363463684,-582.95,0.00021545,2]
[368781117,1751363463694,-460.0,0.00021545,2]
[368781118,1751363463704,-460.0,0.00021545,2]
[368781119,1751363463714,-460.0,0.00021546,2]
[368781120,1751363463723,-460.0,0.00021546,2]
[368781121,1751363463732,-2546.94,0.00021546,2]
[368781122,1751363463741,-460.0,0.00021546,2]
[368781123,1751363463751,-727.96,0.00021546,2]
[368781124,1751363463761,-608.33617136,0.00021555,5]
[368781125,1751363463771,-2500.0,0.00021564,2]
[368781126,1751363463782,-2500.0,0.00021564,2]
[368781127,1751363463793,-235.23589871,0.00021601,2]
[368781128,1751363463802,-460.0,0.00021636,2]
[368781129,1751363463812,-460.0,0.00021636,2]
[368781130,1751363463822,-460.0,0.00021636,2]
[368781131,1751363463832,-460.0,0.00021636,2]
[368781132,1751363463841,-2968.01,0.00021637,2]
[368781133,1751363463851,-842.61,0.00021637,2]
[368781134,1751363463861,-598.6,0.00021643,2]
[368781135,1751363463876,-935.82,0.00021643,2]
[368781136,1751363463886,-460.0,0.00021643,2]
[368781137,1751363463896,-460.0,0.00021643,2]
[368781138,1751363463905,-1539.79,0.00021643,2]
[368781139,1751363463915,-2209.86,0.00021643,2]
[368781140,1751363463928,-460.0,0.00021643,2]
[368781141,1751363463938,-1177.83,0.00021643,2]
[368781142,1751363463949,-514.45,0.00021645,2]
[368781143,1751363463959,-179.64071856,0.00021713,2]
[368781144,1751363463969,-427.41264538,0.00021732,2]
[368781145,1751363463979,-255.0,0.00021732,2]
[368781146,1751363463989,-255.0,0.00021732,2]
[368781147,1751363463999,-255.0,0.00021732,2]
[368781148,1751363464009,-232.29617255,0.00021732,2]
[368781149,1751363464019,-608.33617136,0.00021797,6]
[368781150,1751363464029,-1323.74,0.00021818,2]
[368781151,1751363464040,-318.0,0.00021819,2]
[368781152,1751363464052,-318.0,0.00021819,2]
[368781153,1751363464062,-318.0,0.00021819,2]
[368781154,1751363464072,-166.0,0.00021819,2]
[368781155,1751363464082,-166.0,0.00021819,2]
[368781156,1751363464093,-166.0,0.00021819,2]
[368781157,1751363464103,-166.0,0.00021819,2]
[368781158,1751363464112,-166.0,0.00021819,2]
[368781159,1751363464122,-166.0,0.00021819,2]
[368781160,1751363464132,-166.0,0.00021819,2]
[368781161,1751363464141,-166.0,0.00021819,2]
[368781162,1751363464151,-172.0,0.00021819,2]
[368781163,1751363464160,-318.0,0.00021819,2]
[368781164,1751363464171,-318.0,0.00021819,2]
[368781165,1751363464180,-318.0,0.00021819,2]
[368781166,1751363464190,-318.0,0.00021819,2]
[368781167,1751363464200,-318.0,0.00021819,2]
[368781168,1751363464210,-318.0,0.00021819,2]
[368781169,1751363464220,-313.64715017,0.00021819,2]
[368781170,1751363464230,-1590.5,0.00021819,2]
[368781171,1751363464240,-460.0,0.00021819,2]
[368781172,1751363464250,-1192.21,0.00021819,2]
[368781173,1751363464259,-1552.26,0.00021819,2]
[368781174,1751363464270,-460.0,0.00021819,2]
[368781175,1751363464280,-1767.48,0.00021819,2]
[368781176,1751363464290,-1866.06,0.00021819,2]
[368781177,1751363464299,-460.0,0.00021819,2]
[368781178,1751363464309,-1119.17,0.00021819,2]
[368781179,1751363464319,-585.13,0.00021819,2]
[368781180,1751363464329,-582.95,0.00021819,2]
[368781181,1751363464339,-460.0,0.00021819,2]
[368781182,1751363464348,-237.23,0.00021819,2]
[368781183,1751363464358,-460.0,0.0002182,2]
[368781184,1751363464368,-460.0,0.0002182,2]
[368781185,1751363464378,-2546.94,0.0002182,2]
[368781186,1751363464388,-460.0,0.0002182,2]
[368781187,1751363464398,-727.96,0.0002182,2]
[368781188,1751363464408,-1856.58,0.000219,2]
[368781189,1751363464417,-460.0,0.0002191,2]
[368781190,1751363464427,-460.0,0.0002191,2]
[368781191,1751363464437,-460.0,0.0002191,2]
[368781192,1751363464446,-2968.01,0.00021911,2]
[368781193,1751363464455,-842.61,0.00021911,2]
[368781194,1751363464465,-598.6,0.00021917,2]
[368781195,1751363464476,-935.82,0.00021917,2]
[368781196,1751363464486,-460.0,0.00021917,2]
[368781197,1751363464496,-460.0,0.00021917,2]
[368781198,1751363464505,-1539.79,0.00021917,2]
[368781199,1751363464515,-2209.86,0.00021917,2]
[368781200,1751363464525,-312.22,0.00021917,2]
[368781201,1751363464535,-1177.83,0.00021917,2]
[368781202,1751363464545,-151.0,0.00021918,2]
[368781203,1751363464556,-151.0,0.00021918,2]
[368781204,1751363464567,-151.0,0.00021918,2]
[368781205,1751363464577,-151.0,0.00021918,2]
[368781206,1751363464587,-151.0,0.00021918,2]
[368781207,1751363464598,-400.0,0.00021918,7]
[368781208,1751363464608,-514.45,0.00021919,2]
[368781209,1751363464618,-1500.0,0.00022,3]
[368781210,1751363464628,-2000.0,0.00022,2]
[368781211,1751363464638,-48298.75200909,0.00022,14]
[368781212,1751363464649,-1000.0,0.00022,22]
[368781213,1751363464659,-167.0,0.00022,2]
[368781214,1751363464668,-401.0,0.00022,2]
[368781215,1751363464678,-250.0,0.00022009,2]
[368781216,1751363464688,-608.33617136,0.00022038,6]
[368781217,1751363464698,-159.319357,0.00022048,2]
[368781218,1751363464708,-177.5971231,0.00022048,2]
[368781219,1751363464717,-575.5050994,0.00022048,2]
[368781220,1751363464727,-1323.74,0.00022092,2]
[368781221,1751363464736,-1590.5,0.00022093,2]
[368781222,1751363464746,-460.0,0.00022093,2]
[368781223,1751363464755,-1192.21,0.00022093,2]
[368781224,1751363464765,-1552.26,0.00022093,2]
[368781225,1751363464777,-460.0,0.00022093,2]
[368781226,1751363464787,-1767.48,0.00022093,2]
[368781227,1751363464798,-1866.06,0.00022093,2]
[368781228,1751363464808,-460.0,0.00022093,2]
[368781229,1751363464817,-1119.17,0.00022093,2]
[368781230,1751363464827,-585.13,0.00022093,2]
[368781231,1751363464837,-582.95,0.00022093,2]
[368781232,1751363464848,-460.0,0.00022093,2]
[368781233,1751363464859,-460.0,0.00022094,2]
[368781234,1751363464870,-460.0,0.00022094,2]
[368781235,1751363464879,-2546.94,0.00022094,2]
[368781236,1751363464889,-460.0,0.00022094,2]
[368781237,1751363464899,-727.96,0.00022094,2]
[368781238,1751363464911,-847.53272281,0.000221,3]
[368781239,1751363464923,-160.0,0.000221,3]
[368781240,1751363464933,-12571.40790328,0.000221,3]
[368781241,1751363464942,-524.61914904,0.000221,3]
[368781242,1751363464954,-160.0,0.000221,3]
[368781243,1751363464967,-391.0,0.00022106,2]
[368781244,1751363464977,-505.25506435,0.00022112,2]
[368781245,1751363464988,-3000.0,0.00022112,2]
[368781246,1751363464999,-460.0,0.00022184,2]
[368781247,1751363465010,-460.0,0.00022184,2]
[368781248,1751363465020,-460.0,0.00022184,2]
[368781249,1751363465030,-2968.01,0.00022185,2]
[368781250,1751363465041,-842.61,0.00022185,2]
[368781251,1751363465050,-598.6,0.00022191,2]
[368781252,1751363465060,-935.82,0.00022191,2]
[368781253,1751363465070,-460.0,0.00022191,2]
[368781254,1751363465080,-460.0,0.00022191,2]
[368781255,1751363465090,-1539.79,0.00022191,2]
[368781256,1751363465100,-2209.86,0.00022191,2]
[368781257,1751363465110,-1177.83,0.00022191,2]
[368781258,1751363465119,-167.0,0.00022192,7]
[368781259,1751363465129,-401.0,0.00022192,7]
[368781260,1751363465138,-514.45,0.00022193,2]
[368781261,1751363465148,-241.05971327,0.000222,69]
[368781262,1751363465158,-608.33617136,0.00022279,6]
[368781263,1751363465169,-74131.81723308,0.000223,7]
[368781264,1751363465181,-847.53272281,0.000223,7]
[368781265,1751363465190,-213.87551669,0.000223,7]
[368781266,1751363465200,-524.61914904,0.000223,7]
[368781267,1751363465213,-223.0315306,0.00022324,2]
[368781268,1751363465222,-206.0,0.0002233,2]
[368781269,1751363465231,-1323.74,0.00022366,2]
[368781270,1751363465241,-1590.5,0.00022367,2]
[368781271,1751363465251,-460.0,0.00022367,2]
[368781272,1751363465261,-1192.21,0.00022367,2]
[368781273,1751363465272,-1552.26,0.00022367,2]
[368781274,1751363465282,-460.0,0.00022367,2]
[368781275,1751363465292,-1767.48,0.00022367,2]
[368781276,1751363465303,-1866.06,0.00022367,2]
[368781277,1751363465313,-460.0,0.00022367,2]
[368781278,1751363465322,-1119.17,0.00022367,2]
[368781279,1751363465332,-585.13,0.00022367,2]
[368781280,1751363465342,-582.95,0.00022367,2]
[368781281,1751363465352,-460.0,0.00022367,2]
[368781282,1751363465361,-460.0,0.00022368,2]
[368781283,1751363465370,-460.0,0.00022368,2]
[368781284,1751363465380,-2546.94,0.00022368,2]
[368781285,1751363465390,-460.0,0.00022368,2]
[368781286,1751363465399,-727.96,0.00022368,2]
[368781287,1751363465409,-207.0,0.0002241,5]
[368781288,1751363465418,-460.0,0.00022458,2]
[368781289,1751363465428,-460.0,0.00022458,2]
[368781290,1751363465437,-459.72,0.00022458,2]
[368781291,1751363465446,-2968.01,0.00022459,2]
[368781292,1751363465454,-842.61,0.00022459,2]
[368781293,1751363465464,-1443.62,0.00022464,3]
[368781294,1751363465473,-598.6,0.00022465,2]
[368781295,1751363465483,-935.82,0.00022465,2]
[368781296,1751363465492,-460.0,0.00022465,2]
[368781297,1751363465502,-460.0,0.00022465,2]
[368781298,1751363465511,-1539.79,0.00022465,2]
[368781299,1751363465520,-2209.86,0.00022465,2]
[368781300,1751363465530,-1177.83,0.00022465,2]
[368781301,1751363465539,-401.0,0.00022466,7]
[368781302,1751363465548,-514.45,0.00022467,2]
[368781303,1751363465558,-150.0,0.00022473,2]
[368781304,1751363465568,-150.0,0.00022473,2]
[368781305,1751363465577,-200.0,0.00022489,2]
[368781306,1751363465587,-505512.34002353,0.0002249,7]
[368781307,1751363465597,-335914.69984544,0.0002249,7]
[368781308,1751363465606,-151.02,0.0002249,7]
[368781309,1751363465616,-108873.51,0.000225,2]
[368781310,1751363465625,-10842.4,0.000225,7]
[368781311,1751363465635,-100000.0,0.000225,2]
[368781312,1751363465645,-608.33617136,0.00022521,7]
[368781313,1751363465654,-350.0,0.00022557,2]
[368781314,1751363465665,-1443.62,0.00022564,2]
[368781315,1751363465674,-206.0,0.0002259,2]
[368781316,1751363465684,-302.512581,0.00022603,2]
[368781317,1751363465694,-1323.74,0.0002264,2]
[368781318,1751363465703,-1590.5,0.00022641,2]
[368781319,1751363465713,-460.0,0.00022641,2]
[368781320,1751363465723,-1192.21,0.00022641,2]
[368781321,1751363465732,-1552.26,0.00022641,2]
[368781322,1751363465742,-608.08501303,0.00022641,2]
[368781323,1751363465751,-1767.48,0.00022641,2]
[368781324,1751363465761,-1866.06,0.00022641,2]
[368781325,1751363465771,-460.0,0.00022641,2]
[368781326,1751363465780,-1119.17,0.00022641,2]
[368781327,1751363465790,-585.13,0.00022641,2]
[368781328,1751363465799,-582.95,0.00022641,2]
[368781329,1751363465808,-460.0,0.00022641,2]
[368781330,1751363465817,-458.77311548,0.00022642,2]
[368781331,1751363465827,-460.0,0.00022642,2]
[368781332,1751363465836,-2546.94,0.00022642,2]
[368781333,1751363465845,-460.0,0.00022642,2]
[368781334,1751363465854,-727.96,0.00022642,2]
[368781335,1751363465865,-3500.0,0.0002266,2]
[368781336,1751363465874,-1443.62,0.00022664,2]
[368781337,1751363465883,-500.0,0.00022699,2]
[368781338,1751363465893,-1600.0,0.00022725,2]
[368781339,1751363465905,-460.0,0.00022732,2]
[368781340,1751363465915,-586.4,0.00022732,2]
[368781341,1751363465927,-2968.01,0.00022733,2]
[368781342,1751363465936,-842.61,0.00022733,2]
[368781343,1751363465946,-150.0,0.00022737,2]
[368781344,1751363465955,-598.6,0.00022739,2]
[368781345,1751363465966,-935.82,0.00022739,2]
[368781346,1751363465975,-460.0,0.00022739,2]
[368781347,1751363465984,-460.0,0.00022739,2]
[368781348,1751363466100,-1539.79,0.00022739,2]
[368781349,1751363466112,-2209.86,0.00022739,2]
[368781350,1751363466122,-1177.83,0.00022739,2]
[368781351,1751363466131,-401.0,0.0002274,7]
[368781352,1751363466141,-514.45,0.00022741,2]
[368781353,1751363466150,-500.0,0.00022754,2]
[368781354,1751363466161,-500.0,0.00022755,2]
[368781355,1751363466170,-608.33617136,0.00022762,7]
[368781356,1751363466179,-1443.62,0.00022764,4]
[368781357,1751363466188,-517.26412173,0.000228,5]
[368781358,1751363466198,-500.0,0.00022801,2]
[368781359,1751363466207,-1000.0,0.00022835,2]
[368781360,1751363466216,-206.0,0.0002285,2]
[368781361,1751363466226,-500.0,0.0002285,2]
[368781362,1751363466236,-1000.0,0.0002286,2]
[368781363,1751363466245,-1443.62,0.00022864,6]
[368781364,1751363466255,-500.0,0.00022864,2]
[368781365,1751363466264,-1000.0,0.00022873,2]
[368781366,1751363466273,-1856.58,0.000229,7]
[368781367,1751363466283,-1323.74,0.00022914,2]
[368781368,1751363466292,-1590.5,0.00022915,2]
[368781369,1751363466301,-460.0,0.00022915,2]
[368781370,1751363466311,-1192.21,0.00022915,2]
[368781371,1751363466320,-1552.26,0.00022915,2]
[368781372,1751363466330,-1767.48,0.00022915,2]
[368781373,1751363466340,-1866.06,0.00022915,2]
[368781374,1751363466349,-460.0,0.00022915,2]
[368781375,1751363466359,-1119.17,0.00022915,2]
[368781376,1751363466368,-585.13,0.00022915,2]
[368781377,1751363466377,-582.95,0.00022915,2]
[368781378,1751363466387,-460.0,0.00022915,2]
[368781379,1751363466396,-323.74763936,0.00022916,2]
[368781380,1751363466406,-2546.94,0.00022916,2]
[368781381,1751363466415,-184.91,0.00022916,2]
[368781382,1751363466425,-727.96,0.00022916,2]
[368781383,1751363466434,-181607.17429495,0.00022919,2]
[368781384,1751363466444,-5869.43378977,0.00022926,2]
[368781385,1751363466453,-5000.0,0.00022926,2]
[368781386,1751363466463,-5000.0,0.00022926,2]
[368781387,1751363466472,-5000.0,0.00022926,2]
[368781388,1751363466481,-5000.0,0.00022926,2]
[368781389,1751363466491,-500.0,0.00022929,2]
[368781390,1751363466500,-1600.0,0.00022946,2]
[368781391,1751363466509,-1443.62,0.00022964,7]
[368781392,1751363466518,-5000.0,0.00022964,2]
[368781393,1751363466528,-1000.0,0.00022983,2]
[368781394,1751363466537,-1600.0,0.00022989,2]
[368781395,1751363466547,-249.34791792,0.00023,2]
[368781396,1751363466556,-495.61021267,0.00023,2]
[368781397,1751363466566,-506.11,0.00023,5]
[368781398,1751363466575,-1332.36157721,0.00023,2]
[368781399,1751363466586,-500.0,0.00023,3]
[368781400,1751363466595,-636.21,0.00023,3]
[368781401,1751363466605,-500.0,0.00023,5]
[368781402,1751363466614,-500.0,0.00023,3]
[368781403,1751363466624,-500.0,0.00023,2]
[368781404,1751363466634,-500.0,0.00023,3]
[368781405,1751363466643,-500.0,0.00023,3]
[368781406,1751363466652,-500.0,0.00023,3]
[368781407,1751363466662,-500.0,0.00023,5]
[368781408,1751363466673,-5000.0,0.00023,7]
[368781409,1751363466682,-1140.64522034,0.00023,5]
[368781410,1751363466692,-2252.0,0.00023,7]
[368781411,1751363466701,-177.46119262,0.00023,30]
[368781412,1751363466710,-160.0,0.00023,3]
[368781413,1751363466720,-160.0,0.00023,3]
[368781414,1751363466729,-2000.0,0.00023,2]
[368781415,1751363466739,-1000.0,0.00023,23]
[368781416,1751363466749,-215.01728679,0.00023,3]
[368781417,1751363466759,-160.0,0.00023,3]
[368781418,1751363466769,-230.32585361,0.00023,3]
[368781419,1751363466779,-837.20943635,0.00023,3]
[368781420,1751363466788,-213.87551669,0.00023,3]
[368781421,1751363466797,-160.0,0.00023,3]
[368781422,1751363466807,-160.0,0.00023,3]
[368781423,1751363466817,-330.42551553,0.00023,2]
[368781424,1751363466827,-160.0,0.00023,3]
[368781425,1751363466837,-608.33617136,0.00023003,8]
[368781426,1751363466847,-5137.40413491,0.00023005,2]
[368781427,1751363466856,-5000.0,0.00023005,2]
[368781428,1751363466866,-5000.0,0.00023005,2]
[368781429,1751363466875,-5000.0,0.00023005,2]
[368781430,1751363466884,-5000.0,0.00023005,2]
[368781431,1751363466894,-460.0,0.00023006,2]
[368781432,1751363466903,-2968.01,0.00023007,2]
[368781433,1751363466913,-842.61,0.00023007,2]
[368781434,1751363466927,-598.6,0.00023013,2]
[368781435,1751363466936,-935.82,0.00023013,2]
[368781436,1751363466945,-460.0,0.00023013,2]
[368781437,1751363466958,-1539.79,0.00023013,2]
[368781438,1751363466967,-2209.86,0.00023013,2]
[368781439,1751363466978,-1177.83,0.00023013,2]
[368781440,1751363466987,-401.0,0.00023014,7]
[368781441,1751363466997,-167.0,0.00023014,7]
[368781442,1751363467007,-401.0,0.00023014,7]
[368781443,1751363467017,-514.45,0.00023015,2]
[368781444,1751363467027,-300.0,0.00023021,2]
[368781445,1751363467036,-250.0,0.00023021,2]
[368781446,1751363467045,-1000.0,0.00023021,2]
[368781447,1751363467054,-823.0,0.00023022,2]
[368781448,1751363467064,-1000.0,0.00023027,2]
[368781449,1751363467073,-293.85068442,0.00023041,2]
[368781450,1751363467083,-1600.0,0.00023048,2]
[368781451,1751363467092,-1443.62,0.00023064,5]
[368781452,1751363467102,-500.0,0.00023074,2]
[368781453,1751363467111,-5038.98045189,0.00023081,2]
[368781454,1751363467122,-1000.0,0.00023086,2]
[368781455,1751363467131,-1000.0,0.00023094,2]
[368781456,1751363467140,-2451.23916193,0.00023096,2]
[368781457,1751363467150,-2000.0,0.000231,2]
[368781458,1751363467159,-450.0,0.00023105,2]
[368781459,1751363467169,-1000.0,0.00023107,2]
[368781460,1751363467178,-206.0,0.0002311,2]
[368781461,1751363467190,-500.0,0.0002311,2]
[368781462,1751363467200,-1443.62,0.00023164,4]
[368781463,1751363467210,-1323.74,0.00023188,2]
[368781464,1751363467219,-1590.5,0.00023189,2]
[368781465,1751363467228,-460.0,0.00023189,2]
[368781466,1751363467238,-1192.21,0.00023189,2]
[368781467,1751363467249,-1552.26,0.00023189,2]
[368781468,1751363467260,-1767.48,0.00023189,2]
[368781469,1751363467271,-1866.06,0.00023189,2]
[368781470,1751363467282,-460.0,0.00023189,2]
[368781471,1751363467292,-1119.17,0.00023189,2]
[368781472,1751363467302,-585.13,0.00023189,2]
[368781473,1751363467311,-582.95,0.00023189,2]
[368781474,1751363467321,-504.88,0.00023189,2]
[368781475,1751363467330,-2546.94,0.0002319,2]
[368781476,1751363467339,-727.96,0.0002319,2]
[368781477,1751363467349,-4000.0,0.00023208,2]
[368781478,1751363467359,-1600.0,0.00023236,2]
[368781479,1751363467369,-608.33617136,0.00023245,8]
[368781480,1751363467379,-500.0,0.00023247,2]
[368781481,1751363467388,-1443.62,0.00023264,5]
[368781482,1751363467399,-1000.0,0.00023276,2]
[368781483,1751363467409,-500.0,0.00023278,2]
[368781484,1751363467419,-598.42,0.0002328,2]
[368781485,1751363467428,-2968.01,0.00023281,2]
[368781486,1751363467437,-842.61,0.00023281,2]
[368781487,1751363467448,-598.6,0.00023287,2]
[368781488,1751363467458,-935.82,0.00023287,2]
[368781489,1751363467467,-460.0,0.00023287,2]
[368781490,1751363467477,-1539.79,0.00023287,2]
[368781491,1751363467487,-2209.86,0.00023287,2]
[368781492,1751363467498,-1177.83,0.00023287,2]
[368781493,1751363467507,-151.03855513,0.00023288,2]
[368781495,1751363467516,-514.45,0.00023289,2]
[368781496,1751363467526,-474.81827952,0.0002329,4]
[368781497,1751363467537,-474.81827952,0.0002329,4]
[368781498,1751363467547,-474.81827952,0.0002329,4]
[368781499,1751363467556,-474.81827952,0.0002329,4]
[368781500,1751363467566,-474.81827952,0.0002329,4]
[368781501,1751363467576,-474.81827952,0.0002329,4]
[368781502,1751363467585,-474.81827952,0.0002329,4]
[368781503,1751363467594,-474.81827952,0.0002329,4]
[368781504,1751363467604,-474.81827952,0.0002329,4]
[368781505,1751363467613,-474.81827952,0.0002329,4]
[368781506,1751363467623,-474.81827952,0.0002329,4]
[368781507,1751363467632,-474.81827952,0.0002329,4]